bitfinex-derivatives/quotes_ETHF0:USTF0_20250102
["timestamp","ask_amount","ask_price","bid_price","bid_amount"]
[1735831808806,5.97019278,3471.0,3470.0,3.2078]
[1735831808807,10.24932278,3471.0,3470.0,3.2078]
[1735831808995,10.24932278,3471.0,3470.2,0.2884]
[1735831808996,0.28841,3470.3,3470.2,0.2884]
[1735831809498,0.28839,3470.4,3470.3,0.28839]
[1735831809702,0.28839,3470.5,3470.4,0.28839]
[1735831810198,0.28839,3470.5,3470.0,3.2078]
[1735831810199,0.28837,3470.7,3470.6,0.28836]
[1735831810702,5.74105099,3471.0,3470.9,0.28835]
[1735831811092,0.28836,3470.8,3470.7,0.28836]
[1735831811399,0.28837,3470.6,3470.5,0.8042]
[1735831811596,3.2078,3470.6,3469.9,3.9922]
[1735831811803,0.28842,3470.2,3470.1,0.28841]
[1735831812203,0.28836,3470.8,3470.7,0.28836]
[1735831812391,0.28838,3470.5,3470.4,3.2078]
[1735831813192,0.28838,3470.5,3470.4,3.49619]
[1735831813411,5.45271099,3471.0,3470.4,3.2078]
[1735831813601,5.45271099,3471.0,3470.5,0.8042]
[1735831813805,0.28836,3470.9,3470.8,0.28835]
[1735831815002,6.17347099,3471.5,3470.6,0.7344]
[1735831815003,2.04152278,3471.4,3470.6,0.7344]
[1735831815204,3.2078,3471.1,3470.4,3.2078]
[1735831815903,3.2078,3471.1,3470.8,0.28835]
[1735831816105,0.28837,3470.8,3470.7,0.28836]
[1735831816800,0.28838,3470.5,3470.4,3.49618]
[1735831816998,0.28838,3470.5,3470.4,3.2078]
[1735831817203,0.28838,3470.5,3470.4,3.49619]
[1735831817409,3.2078,3471.1,3470.5,0.72096]
[1735831817612,3.2078,3471.1,3471.0,0.28834]
[1735831817613,3.49615,3471.1,3471.0,0.28834]
[1735831817802,0.28836,3470.9,3470.8,0.28835]
[1735831818511,3.2078,3471.1,3470.5,0.72096]
[1735831818813,3.2078,3471.1,3470.4,3.2078]
[1735831818814,2.24491099,3471.7,3471.0,3.2078]
[1735831819012,0.28832,3471.4,3471.3,0.28831]
[1735831819509,0.28832,3471.3,3471.2,0.28832]
[1735831819804,2.24491099,3471.7,3471.2,2.04152278]
[1735831820008,2.24491099,3472.1,3472.0,0.28826]
[1735831820207,2.53316099,3472.1,3472.0,0.28826]
[1735831820405,2.24491099,3472.1,3472.0,0.28826]
[1735831820703,2.24491099,3472.1,3472.0,3.49606]
[1735831820908,1.03551099,3472.1,3472.0,3.49606]
[1735831821213,1.03551099,3472.1,3472.0,5.02386]
[1735831821708,0.28821,3472.6,3472.5,0.28822]
[1735831822013,0.28822,3472.6,3472.5,0.28822]
[1735831822403,0.28822,3472.5,3472.4,0.28822]
[1735831822606,0.28822,3472.5,3472.0,3.2078]
[1735831822607,0.28825,3472.1,3472.0,3.2078]
[1735831822809,0.72067,3471.9,3471.2,3.2078]
[1735831823109,0.28832,3471.3,3471.2,14.72067495]
[1735831823409,37.8,3471.7,3471.4,0.28831]
[1735831823608,0.2883,3471.6,3471.5,0.28829]
[1735831823818,0.28828,3471.8,3471.7,0.28828]
[1735831824009,0.28827,3471.9,3471.8,0.28827]
[1735831824714,0.28829,3471.7,3471.6,0.28829]
[1735831825215,3.2078,3472.1,3471.6,3.2078]
[1735831825410,3.49605,3472.1,3472.0,0.28826]
[1735831825611,0.28826,3472.0,3471.9,0.28826]
[1735831825911,0.28826,3472.0,3471.8,0.28827]
[1735831826111,0.28826,3472.0,3471.3,3.16050406]
[1735831826112,3.2078,3472.1,3471.3,3.16050406]
[1735831826609,0.28828,3471.8,3471.7,0.28828]
[1735831826813,0.2883,3471.6,3471.5,0.28829]
[1735831827415,0.28828,3471.8,3471.2,3.2078]
[1735831827610,0.72057,3472.4,3471.2,3.2078]
[1735831827917,0.28829,3471.7,3471.6,0.28829]
[1735831828321,0.28828,3471.8,3471.7,0.28828]
[1735831828517,0.28829,3471.7,3471.6,0.28828]
[1735831828914,3.2078,3472.2,3471.2,3.2078]
[1735831829121,0.28824,3472.3,3471.8,0.28827]
[1735831829320,4.02878921,3472.5,3471.2,3.2078]
[1735831829618,0.28829,3471.7,3471.6,0.28829]
[1735831829821,0.28828,3471.8,3471.7,0.28828]
[1735831830122,4.02878921,3472.5,3471.3,0.72078]
[1735831830321,3.2078,3472.2,3471.3,0.72078]
[1735831830510,3.2078,3472.2,3471.2,3.2078]
[1735831830511,0.2883,3471.7,3471.6,0.28829]
[1735831830709,0.28829,3471.7,3471.6,0.28829]
[1735831830915,0.28832,3471.3,3471.1,0.28833]
[1735831831114,3.49612,3471.3,3471.2,4.51694322]
[1735831831517,2.19953,3472.0,3471.2,4.51694322]
[1735831831518,3.2078,3471.8,3471.2,4.51694322]
[1735831831714,0.28832,3471.4,3471.3,0.28831]
[1735831831912,0.28832,3471.3,3471.2,4.51694322]
[1735831832324,0.2883,3471.6,3471.5,0.2883]
[1735831832914,0.28831,3471.5,3471.4,0.2883]
[1735831833230,3.49606,3472.1,3472.0,0.28826]
[1735831833421,3.2078,3472.1,3472.0,0.28826]
[1735831833621,3.49605,3472.1,3472.0,0.28826]
[1735831834030,3.2078,3472.1,3472.0,0.28826]
[1735831834425,3.36736648,3472.4,3472.3,0.28823]
[1735831834734,4.48982198,3472.6,3472.1,3.22080406]
[1735831835024,3.38782739,3473.2,3472.5,5.64750406]
[1735831835227,3.38782739,3473.2,3473.1,0.28817]
[1735831836638,0.28815,3473.4,3473.3,0.28814]
[1735831836923,3.2078,3473.8,3473.0,0.7353]
[1735831837129,0.28812,3473.8,3473.6,0.28812]
[1735831837327,3.2078,3473.8,3473.0,0.7353]
[1735831837531,0.28812,3473.7,3473.5,0.28813]
[1735831837725,3.2078,3473.8,3473.0,0.7353]
[1735831838029,0.28813,3473.6,3473.5,0.28813]
[1735831838235,3.2078,3473.8,3473.0,0.7353]
[1735831838940,0.28816,3473.3,3473.1,0.28817]
[1735831839243,0.28816,3473.3,3473.0,0.7353]
[1735831839433,3.2078,3473.8,3473.3,0.28814]
[1735831839739,3.2078,3473.8,3473.0,0.7353]
[1735831839940,0.28813,3473.5,3473.4,0.28814]
[1735831840240,0.8027,3474.3,3473.4,3.2078]
[1735831840435,5.64750406,3474.2,3473.0,3.9431]
[1735831840640,0.28812,3473.7,3473.4,0.28813]
[1735831841039,3.2078,3473.8,3473.1,0.28817]
[1735831841239,0.2882,3472.8,3472.5,4.51694322]
[1735831841435,0.28819,3472.9,3472.7,0.2882]
[1735831841642,3.2078,3473.4,3472.5,4.51694322]
[1735831842046,0.28818,3473.0,3472.8,0.28819]
[1735831842343,3.2078,3473.4,3472.4,3.2078]
[1735831842642,0.28822,3472.5,3472.3,0.28823]
[1735831842833,0.28824,3472.2,3472.1,4.51694322]
[1735831843444,0.28827,3471.9,3471.8,4.51694322]
[1735831844940,0.28832,3471.2,3470.9,0.7345]
[1735831845139,3.2078,3471.1,3470.5,4.51694322]
[1735831845337,0.28837,3470.6,3470.5,4.51694322]
[1735831846739,0.7285,3470.9,3470.3,0.2884]
[1735831847045,0.28838,3470.6,3470.4,0.28839]
[1735831847642,0.28838,3470.6,3470.2,0.7345]
[1735831847643,0.28837,3470.7,3470.5,0.28838]
[1735831847944,0.28839,3470.5,3470.3,0.28839]
[1735831848146,0.28837,3470.6,3470.0,0.28842]
[1735831848345,0.28841,3470.2,3470.0,0.28842]
[1735831848548,0.28842,3470.0,3469.9,3.2078]
[1735831848736,0.28844,3469.8,3469.7,0.7943]
[1735831849049,1.36,3469.8,3469.3,4.51694322]
[1735831849238,0.28851,3469.0,3468.9,4.51694322]
[1735831849438,3.2078,3469.1,3468.9,4.51694322]
[1735831849745,0.2885,3469.2,3468.9,4.80545322]
[1735831849940,3.2078,3469.5,3468.9,4.51694322]
[1735831850141,3.2078,3469.5,3469.0,0.2885]
[1735831850343,3.2078,3469.5,3468.9,4.51694322]
[1735831850548,0.28851,3469.0,3468.9,4.51694322]
[1735831851039,0.28851,3469.0,3468.3,3.2078]
[1735831851040,3.2078,3469.1,3468.3,3.2078]
[1735831851239,0.28854,3468.6,3468.3,3.2078]
[1735831851546,1.361,3469.0,3468.3,3.2078]
[1735831851739,0.28853,3468.8,3468.4,0.28855]
[1735831852042,1.64951,3469.0,3468.6,0.28854]
[1735831852242,1.361,3469.0,3468.7,0.28853]
[1735831852750,3.2078,3469.1,3468.3,5.64750406]
[1735831853446,0.2885,3469.2,3468.7,0.28853]
[1735831853644,0.2885,3469.2,3468.8,0.28852]
[1735831853843,3.49629,3469.3,3468.8,0.28852]
[1735831854045,3.80070406,3469.6,3468.3,5.64750406]
[1735831854241,3.2078,3469.3,3468.3,5.64750406]
[1735831854440,0.28853,3468.8,3468.3,3.49636]
[1735831854636,3.2078,3468.9,3468.3,3.2078]
[1735831854842,0.28854,3468.6,3468.3,3.2078]
[1735831855037,0.28855,3468.6,3468.3,3.2078]
[1735831855347,1.361,3468.8,3467.7,3.9901]
[1735831855543,0.28853,3468.7,3467.9,0.28859]
[1735831855743,0.28854,3468.6,3467.7,3.9901]
[1735831855950,0.28854,3468.7,3468.3,0.28856]
[1735831856143,1.361,3468.8,3468.1,3.2078]
[1735831856344,3.2078,3469.4,3468.1,3.2078]
[1735831856542,3.2078,3469.4,3468.8,0.28852]
[1735831856543,0.28849,3469.3,3468.8,0.28852]
[1735831856745,3.2078,3469.4,3469.0,0.28851]
[1735831856950,2.0822,3469.6,3469.0,0.2885]
[1735831857159,0.28848,3469.4,3469.0,0.2885]
[1735831857452,3.49628,3469.4,3469.0,0.2885]
[1735831857639,3.49628,3469.4,3468.8,0.01]
[1735831857640,3.2078,3469.4,3468.8,0.01]
[1735831858043,2.43970406,3469.2,3468.8,0.01]
[1735831858244,0.28852,3468.9,3468.8,0.01]
[1735831859752,6.64952,3468.9,3468.8,0.01]
[1735831859948,1.64952,3468.9,3468.8,0.01]
[1735831860552,0.28852,3468.9,3468.8,0.01]
[1735831861156,5.28852,3468.9,3468.8,0.01]
[1735831861646,0.2886,3467.9,3467.7,0.28861]
[1735831861846,4.5688,3468.4,3467.5,4.7319]
[1735831862048,4.5688,3468.4,3467.5,5.45348]
[1735831862256,1.361,3468.4,3467.5,5.45348]
[1735831862456,0.28857,3468.3,3467.5,5.45348]
[1735831862758,0.28853,3468.7,3468.5,0.28855]
[1735831862955,3.2078,3468.8,3467.9,3.92929]
[1735831862956,0.28855,3468.5,3468.3,0.28856]
[1735831863261,0.28855,3468.6,3468.4,0.28855]
[1735831863549,3.2078,3468.8,3467.9,3.2078]
[1735831863750,2.43970406,3468.1,3467.5,1.81272]
[1735831863949,3.2078,3467.8,3467.5,0.7928]
[1735831864147,0.28862,3467.6,3467.5,0.7928]
[1735831864347,3.2078,3467.8,3467.5,0.7928]
[1735831864657,3.2078,3467.8,3467.6,0.28862]
[1735831864849,3.2078,3467.8,3466.9,0.7457]
[1735831864850,0.28867,3467.0,3466.9,0.7457]
[1735831865043,0.28872,3466.4,3466.2,4.48329862]
[1735831865351,0.28873,3466.3,3466.2,4.48329862]
[1735831866452,0.28873,3466.3,3466.1,6.72494793]
[1735831866453,0.28876,3466.0,3465.7,1.77128]
[1735831866653,3.2078,3466.1,3465.7,1.4825]
[1735831866848,0.28876,3466.0,3465.7,1.77128]
[1735831867047,0.28876,3466.0,3465.2,0.28882]
[1735831867048,0.2888,3465.6,3465.2,0.28882]
[1735831867354,2.43970406,3465.6,3465.1,0.7457]
[1735831867650,2.43970406,3465.6,3465.1,0.28883]
[1735831867651,0.28882,3465.4,3465.1,0.28883]
[1735831867959,2.43970406,3466.0,3465.0,3.2078]
[1735831868352,0.28877,3465.9,3465.1,0.28883]
[1735831868656,5.64750406,3466.0,3465.3,0.28881]
[1735831868955,0.28881,3465.4,3465.0,3.49664]
[1735831869148,5.64750406,3465.6,3464.9,1.08184]
[1735831869356,5.64750406,3465.6,3464.9,0.793]
[1735831870253,0.28884,3465.0,3464.6,3.2078]
[1735831870451,2.72853406,3465.2,3464.7,0.28887]
[1735831870649,0.28883,3465.1,3464.7,0.28887]
[1735831871062,5.64750406,3465.2,3464.8,0.28886]
[1735831871265,5.64750406,3465.2,3464.2,4.0008]
[1735831871556,0.28887,3464.7,3464.2,0.793]
[1735831871953,5.64750406,3464.8,3464.2,0.793]
[1735831872348,0.28888,3464.6,3464.2,0.793]
[1735831872556,5.64750406,3464.8,3464.2,0.793]
[1735831872757,3.2078,3465.3,3464.2,9.0008]
[1735831873058,3.2078,3465.3,3465.2,0.28882]
[1735831873656,3.2078,3465.7,3465.6,0.28879]
[1735831874055,2.43970406,3466.5,3466.2,0.28874]
[1735831874361,0.28872,3466.5,3466.1,3.49655]
[1735831874558,2.43970406,3466.9,3466.1,3.2078]
[1735831874751,2.43970406,3466.9,3466.3,3.2078]
[1735831875062,0.28868,3467.0,3466.5,0.28871]
[1735831875258,3.2078,3467.1,3466.3,3.2078]
[1735831875456,3.2078,3467.1,3466.9,0.28868]
[1735831875653,3.2078,3467.5,3466.7,3.2078]
[1735831875853,3.2078,3467.5,3467.2,0.28866]
[1735831876156,3.2078,3467.5,3466.7,3.2078]
[1735831876559,0.28865,3467.3,3466.9,0.28868]
[1735831876860,0.28867,3467.1,3466.7,3.4965]
[1735831877062,0.28866,3467.3,3466.9,0.28868]
[1735831877257,0.28866,3467.3,3466.7,3.2078]
[1735831877258,0.28864,3467.4,3467.0,0.28867]
[1735831877464,0.28865,3467.3,3466.9,0.28868]
[1735831877765,0.72153,3467.8,3466.8,0.28869]
[1735831878066,0.28869,3466.8,3466.7,3.2078]
[1735831879060,41.0078,3467.4,3466.7,3.2078]
[1735831879564,46.0078,3467.4,3466.7,3.2078]
[1735831879756,0.28865,3467.3,3466.7,3.2078]
[1735831879962,1.361,3467.3,3466.7,3.2078]
[1735831880361,0.28866,3467.2,3466.9,0.28868]
[1735831880565,0.28866,3467.2,3466.7,3.2078]
[1735831880566,0.28865,3467.3,3467.0,0.28867]
[1735831880760,0.28865,3467.3,3466.7,3.2078]
[1735831880761,1.361,3467.6,3466.7,3.2078]
[1735831881070,0.28867,3467.1,3466.8,0.28869]
[1735831881260,0.28867,3467.1,3466.7,3.2078]
[1735831881261,0.28868,3467.0,3466.7,3.4965]
[1735831881468,3.2078,3467.4,3466.3,3.2078]
[1735831881763,5.98431783,3467.0,3466.2,0.7479]
[1735831881968,3.2078,3467.0,3466.2,0.7479]
[1735831882764,0.72171,3466.9,3466.2,0.7479]
[1735831882965,0.28873,3466.3,3466.2,0.7479]
[1735831883460,3.2078,3467.0,3466.2,0.7479]
[1735831884070,3.2078,3467.0,3466.3,0.28873]
[1735831884071,0.28871,3466.6,3466.3,0.28873]
[1735831884267,0.28871,3466.6,3466.4,0.28872]
[1735831884464,3.2078,3467.8,3466.3,8.2078]
[1735831884660,3.2078,3467.8,3467.0,3.2078]
[1735831884965,0.28866,3467.3,3467.0,3.49647]
[1735831885171,3.2078,3467.8,3466.4,3.9853]
[1735831885367,0.28869,3466.8,3466.6,0.2887]
[1735831885572,0.72167,3467.1,3466.2,0.7479]
[1735831885876,3.2078,3467.2,3466.6,0.2887]
[1735831885877,0.28869,3466.8,3466.6,0.2887]
[1735831886172,3.2078,3467.2,3466.5,3.2078]
[1735831886665,3.49646,3467.2,3467.0,0.28867]
[1735831886865,3.49646,3467.2,3466.5,3.2078]
[1735831886866,3.2078,3467.2,3466.5,3.2078]
[1735831887067,0.28867,3467.1,3466.9,0.28868]
[1735831887267,3.2078,3467.2,3466.5,3.2078]
[1735831887460,0.28871,3466.6,3466.5,3.2078]
[1735831887667,0.72167,3467.1,3466.2,0.7479]
[1735831888067,5.72167,3467.1,3466.2,0.7479]
[1735831888269,0.28873,3466.3,3466.2,0.7479]
[1735831889068,3.92954,3466.8,3465.7,3.2078]
[1735831889069,0.72181,3466.5,3465.7,3.2078]
[1735831889274,3.2078,3466.4,3465.4,0.7768]
[1735831889575,0.2888,3465.5,3465.4,0.7768]
[1735831889870,0.72186,3466.2,3465.4,0.7768]
[1735831889871,3.92962,3466.4,3465.6,0.28879]
[1735831890072,0.28879,3465.6,3465.5,0.2888]
[1735831890260,0.2888,3465.5,3465.4,0.7768]
[1735831890762,0.28881,3465.4,3465.3,3.2078]
[1735831892370,0.28881,3465.4,3464.7,3.2078]
[1735831892371,0.05,3465.0,3464.7,3.2078]
[1735831892566,2.77651783,3464.8,3463.4,3.2078]
[1735831892874,3.2078,3464.5,3463.5,1.5148]
[1735831893266,3.2078,3464.5,3463.6,0.28896]
[1735831893267,0.28891,3464.2,3463.6,0.28896]
[1735831893473,1.361,3464.9,3463.5,1.5148]
[1735831893474,3.2078,3464.1,3463.5,1.5148]
[1735831893668,3.2078,3464.1,3463.5,4.7226]
[1735831894073,0.28893,3464.0,3463.5,4.7226]
[1735831894277,0.28894,3463.8,3463.6,0.28895]
[1735831894575,3.2078,3464.1,3463.5,4.7226]
[1735831894774,0.28892,3464.0,3463.5,4.7226]
[1735831895081,0.28892,3464.0,3463.5,1.80376]
[1735831895277,3.2078,3464.1,3463.5,1.5148]
[1735831895483,0.28896,3463.6,3463.5,1.5148]
[1735831895674,0.28896,3463.6,3463.5,0.7839]
[1735831896280,0.72232,3464.0,3463.0,3.2078]
[1735831896281,0.289,3463.2,3463.0,3.2078]
[1735831896570,0.289,3463.1,3463.0,3.2078]
[1735831897879,0.28898,3463.4,3463.0,3.2078]
[1735831898074,0.28895,3463.8,3463.0,3.2078]
[1735831898278,0.28893,3464.0,3463.7,0.28894]
[1735831898479,0.28893,3464.0,3463.8,0.777]
[1735831898683,3.2078,3464.1,3463.8,0.777]
[1735831898972,0.2889,3464.3,3464.0,0.28892]
[1735831899166,0.28891,3464.2,3463.9,0.28893]
[1735831899371,0.28892,3464.1,3463.8,1.06594]
[1735831899568,3.2078,3464.6,3463.8,0.777]
[1735831899772,3.2078,3464.6,3464.4,0.28889]
[1735831899973,3.2078,3465.0,3464.0,3.2078]
[1735831900168,3.2078,3465.0,3464.9,0.28885]
[1735831900367,3.2078,3465.0,3464.1,1.44809]
[1735831900574,3.2078,3465.0,3464.9,0.28885]
[1735831900974,3.2078,3465.5,3464.1,0.7258]
[1735831901280,3.2078,3465.1,3464.1,0.7258]
[1735831901778,0.28891,3464.2,3464.1,0.7258]
[1735831901973,3.2078,3464.7,3463.9,3.49673]
[1735831902168,3.2078,3464.2,3463.4,0.7258]
[1735831902467,0.28893,3463.9,3463.3,0.28898]
[1735831902675,0.28899,3463.2,3463.1,3.2078]
[1735831903068,0.28898,3463.4,3463.2,0.28898]
[1735831903679,3.2078,3463.6,3463.5,0.28897]
[1735831904277,3.2078,3464.3,3463.1,3.2078]
[1735831904478,3.2078,3464.3,3463.1,8.2078]
[1735831905177,0.28893,3464.0,3463.3,0.72245]
[1735831905370,0.28891,3464.2,3464.1,0.28891]
[1735831905573,0.28891,3464.2,3463.5,3.2078]
[1735831905574,3.49671,3464.3,3463.6,0.7224]
[1735831905776,3.49671,3464.3,3463.7,0.7685]
[1735831905975,3.2078,3464.3,3464.2,0.28891]
[1735831906377,3.4967,3464.3,3464.1,0.28891]
[1735831906576,3.4967,3464.3,3464.2,0.7974]
[1735831907881,0.2889,3464.3,3464.2,0.7974]
[1735831908584,3.4967,3464.3,3464.2,0.7974]
[1735831908991,0.28897,3463.5,3463.4,0.7273]
[1735831909486,3.2078,3463.9,3463.1,0.7436]
[1735831909688,3.2078,3463.9,3463.1,5.7436]
[1735831909983,0.28895,3463.8,3463.1,6.4661]
[1735831910184,0.28895,3463.8,3463.7,0.28895]
[1735831910886,0.28894,3463.8,3463.7,0.28895]
[1735831911087,0.28896,3463.7,3463.1,0.7436]
[1735831911280,3.2078,3463.9,3463.1,0.7436]
[1735831911477,3.2078,3463.9,3463.1,1.03259]
[1735831911478,0.28899,3463.2,3463.1,1.03259]
[1735831911679,0.28898,3463.4,3463.3,0.28898]
[1735831911977,3.2078,3463.9,3463.4,0.28897]
[1735831911978,0.28897,3463.5,3463.4,0.28897]
[1735831912180,0.28896,3463.6,3463.2,0.28899]
[1735831912374,0.28898,3463.4,3463.3,0.28898]
[1735831912579,0.28897,3463.5,3463.4,0.28897]
[1735831912779,0.28897,3463.5,3462.1,9.20722049]
[1735831912780,0.28901,3463.0,3462.6,3.2078]
[1735831912986,0.289,3463.1,3463.0,0.28901]
[1735831913283,3.2078,3463.5,3463.0,0.28901]
[1735831913481,3.2078,3463.5,3462.4,0.7181]
[1735831913886,0.28901,3463.1,3463.0,0.28901]
[1735831914286,0.72244,3463.4,3462.4,0.7181]
[1735831914684,0.28901,3463.0,3462.9,0.28901]
[1735831914888,3.93023,3463.5,3462.4,5.7181]
[1735831915180,3.2078,3463.5,3462.4,5.7181]
[1735831915380,3.93013,3464.0,3462.7,0.72259]
[1735831915684,0.28899,3463.3,3463.2,0.28898]
[1735831915985,0.28898,3463.4,3463.3,0.28898]
[1735831916583,0.28899,3463.3,3463.2,0.28898]
[1735831916982,0.72234,3463.9,3462.7,0.72258]
[1735831917176,0.72234,3463.9,3462.6,3.2078]
[1735831917177,3.2078,3464.0,3462.6,3.2078]
[1735831917379,0.25007061,3464.3,3463.2,0.28898]
[1735831917380,0.28899,3463.3,3463.2,0.28898]
[1735831917588,0.28898,3463.4,3463.3,0.28897]
[1735831917785,3.2078,3463.6,3463.0,3.2078]
[1735831918091,3.2078,3464.2,3463.1,1.52321]
[1735831918496,0.28895,3463.7,3463.6,0.28895]
[1735831918683,0.28896,3463.6,3463.5,0.28896]
[1735831918982,0.28895,3463.8,3463.7,0.28894]
[1735831919384,0.28895,3463.8,3463.7,0.28895]
[1735831919692,3.2078,3464.2,3463.3,0.7187]
[1735831919883,0.28896,3463.7,3463.6,0.28894]
[1735831920083,3.93008,3464.2,3463.3,0.7187]
[1735831920284,3.93008,3464.2,3463.6,0.28895]
[1735831920285,0.28896,3463.7,3463.6,0.28895]
[1735831920487,0.72228,3464.2,3463.4,3.2078]
[1735831920687,0.28893,3464.1,3464.0,0.28892]
[1735831920887,0.28893,3464.0,3463.9,0.28893]
[1735831921084,0.72224,3464.4,3463.4,3.2078]
[1735831921085,0.28896,3463.7,3463.4,3.2078]
[1735831921286,0.28893,3464.0,3463.9,0.28893]
[1735831921991,3.2078,3464.6,3463.4,3.2078]
[1735831922181,0.28892,3464.2,3464.1,0.28891]
[1735831922384,0.28892,3464.2,3463.8,0.28893]
[1735831922385,0.28894,3463.9,3463.8,0.28893]
[1735831922685,0.28895,3463.9,3463.8,0.28894]
[1735831923188,0.28897,3463.5,3463.4,0.28897]
[1735831923394,3.17425077,3464.1,3463.3,0.7187]
[1735831923586,0.28897,3463.6,3463.5,0.28896]
[1735831923782,0.28897,3463.6,3463.3,0.7187]
[1735831923783,2.45195077,3464.1,3463.3,0.7187]
[1735831923983,0.28899,3463.2,3463.1,3.4968]
[1735831925387,3.2078,3463.8,3463.4,0.28897]
[1735831925593,0.28898,3463.5,3463.4,0.28897]
[1735831926280,0.28893,3464.1,3463.6,0.72239]
[1735831926490,0.28895,3463.8,3463.7,0.28894]
[1735831926791,0.28896,3463.7,3463.6,0.28895]
[1735831927287,3.93008,3464.2,3463.3,0.72246]
[1735831927486,0.72232,3464.1,3463.2,3.2078]
[1735831927687,0.72232,3464.0,3463.2,3.2078]
[1735831927991,0.72235,3463.9,3463.2,3.2078]
[1735831928191,0.28897,3463.5,3463.4,0.28897]
[1735831928394,0.28894,3463.9,3463.8,0.28893]
[1735831928587,0.28893,3464.0,3463.9,0.28892]
[1735831929091,3.2078,3464.7,3463.6,3.2078]
[1735831929390,0.28889,3464.5,3464.4,0.28889]
[1735831929586,3.2078,3464.7,3464.2,0.2889]
[1735831929587,0.2889,3464.3,3464.2,0.2889]
[1735831929786,3.2078,3464.7,3464.1,3.2078]
[1735831929988,0.28891,3464.2,3464.1,3.2078]
[1735831930190,0.28891,3464.3,3464.2,0.2889]
[1735831930391,3.92999,3464.7,3464.1,3.2078]
[1735831930584,3.2078,3464.7,3464.1,3.2078]
[1735831930786,2.45195077,3464.5,3463.6,3.2078]
[1735831930989,0.28894,3463.9,3463.8,0.28893]
[1735831931190,0.28893,3464.0,3463.9,0.28892]
[1735831931389,3.2078,3464.3,3463.6,0.28895]
[1735831931390,0.28896,3463.7,3463.6,0.28895]
[1735831931596,0.72228,3464.2,3463.5,0.7251]
[1735831931785,0.28893,3464.0,3463.9,0.28893]
[1735831932489,3.2078,3464.3,3463.5,0.7251]
[1735831932688,2.45195077,3464.1,3463.2,3.2078]
[1735831932887,0.28897,3463.5,3463.4,0.28897]
[1735831933093,0.28898,3463.3,3463.2,3.49679]
[1735831933293,0.28898,3463.3,3463.2,3.2078]
[1735831933795,0.28897,3463.5,3463.4,0.28897]
[1735831934591,0.28897,3463.4,3463.3,4.81073683]
[1735831934794,0.28897,3463.4,3463.3,4.52175683]
[1735831934995,3.2078,3463.9,3463.5,0.28896]
[1735831934996,0.28897,3463.6,3463.5,0.28896]
[1735831935191,0.28895,3463.8,3463.7,0.28894]
[1735831935391,6.38198077,3464.5,3463.7,3.2078]
[1735831935691,3.2078,3464.5,3463.8,0.00331669]
[1735831935888,0.28893,3463.9,3463.8,0.00331669]
[1735831936091,0.28893,3463.9,3463.8,0.29225669]
[1735831936298,5.65975077,3464.5,3463.8,0.00331669]
[1735831936497,0.28893,3463.9,3463.8,0.00331669]
[1735831936698,0.28892,3464.2,3464.1,0.28891]
[1735831937000,0.28893,3464.0,3463.9,0.28893]
[1735831937392,0.72221,3464.5,3463.8,0.00331669]
[1735831937393,3.2078,3464.1,3463.8,0.00331669]
[1735831937586,3.2078,3464.1,3464.0,0.28892]
[1735831937792,3.4967,3464.4,3464.3,0.2889]
[1735831938097,0.28888,3464.6,3464.0,3.2078]
[1735831938396,3.39776651,3465.0,3464.1,1.00642]
[1735831938602,3.2078,3464.8,3464.1,0.7175]
[1735831938798,0.28886,3464.8,3464.7,0.28887]
[1735831938998,0.28888,3464.6,3464.5,0.28888]
[1735831939196,0.72215,3464.8,3464.1,0.7175]
[1735831939506,0.28891,3464.2,3464.1,0.7175]
[1735831939799,0.28891,3464.2,3464.1,1.00642]
[1735831940000,0.2889,3464.3,3464.2,0.2889]
[1735831940303,0.28891,3464.2,3464.1,1.00641]
[1735831940492,0.28892,3464.1,3463.9,0.28893]
[1735831940692,0.28893,3464.0,3463.9,0.28893]
[1735831941199,3.2078,3464.2,3463.8,0.00331669]
[1735831941394,0.28893,3463.9,3463.8,0.00331669]
[1735831941594,3.2078,3464.2,3463.8,0.00331669]
[1735831941898,0.28893,3463.9,3463.8,0.00331669]
[1735831942398,0.28893,3463.9,3463.8,6.80586629]
[1735831943394,0.28893,3463.9,3463.8,7.09480629]
[1735831943593,0.28893,3463.9,3463.8,6.80586629]
[1735831943793,3.2078,3464.2,3463.8,6.80586629]
[1735831944002,3.4012748,3464.1,3463.8,0.00331669]
[1735831944203,3.4012748,3464.1,3464.0,0.28892]
[1735831944701,2.15743307,3464.3,3464.0,6.359]
[1735831944901,5.66879134,3464.5,3464.4,0.28889]
[1735831945097,2.26778548,3465.0,3464.9,0.28885]
[1735831945297,2.26778548,3465.0,3464.9,3.49665]
[1735831945495,2.26778548,3465.0,3464.9,8.49665]
[1735831945795,3.40167823,3465.1,3464.9,8.49665]
[1735831945796,2.94371645,3465.1,3465.0,0.28884]
[1735831945997,3.93732948,3465.3,3465.2,0.28882]
[1735831946201,3.12463429,3465.3,3465.2,2.74077077]
[1735831946396,3.12463429,3465.3,3465.2,0.28882]
[1735831946996,0.28879,3465.7,3465.6,0.28879]
[1735831947197,0.28878,3465.8,3465.1,0.72209]
[1735831947498,0.28879,3465.6,3465.5,0.2888]
[1735831947699,0.28879,3465.6,3464.9,3.92993]
[1735831947700,0.99578,3466.1,3464.9,3.2078]
[1735831948004,0.2739,3466.1,3465.4,3.2078]
[1735831948197,0.56266,3466.1,3465.5,0.2888]
[1735831948404,3.4817,3466.1,3465.4,3.2078]
[1735831948603,0.7512,3466.0,3465.5,6.79009693]
[1735831948904,0.28879,3465.6,3465.5,7.07889693]